fUSD/lending_fUSD_20250111
["ID","MTS","AMOUNT","RATE_DAILY","PERIOD"]
[348513292,1736597456950,-2440.07,0.00010992,2]
[348513293,1736597456960,-500.0,0.00010992,2]
[348513294,1736597456969,-500.0,0.00010992,2]
[348513295,1736597456977,-500.0,0.00010992,2]
[348513296,1736597456986,-500.0,0.00010992,2]
[348513297,1736597456995,-542.81,0.00010992,2]
[348513298,1736597457004,-2168.47,0.00010992,2]
[348513299,1736597457013,-500.0,0.00010992,2]
[348513300,1736597457023,-837.11,0.00010992,2]
[348513301,1736597457032,-500.0,0.00010992,2]
[348513302,1736597457041,-500.0,0.00010992,2]
[348513303,1736597457050,-1302.44,0.00010992,2]
[348513304,1736597457059,-952.74,0.00010992,2]
[348513305,1736597457068,-500.0,0.00010992,2]
[348513306,1736597457078,-716.39,0.00010992,2]
[348513307,1736597457087,-986.22,0.00010992,2]
[348513308,1736597457096,-643.61,0.00010992,2]
[348513309,1736597457106,-500.0,0.00010992,2]
[348513310,1736597457115,-2253.75,0.00010992,2]
[348513311,1736597457124,-500.0,0.00010992,2]
[348513312,1736597457133,-543.99,0.00010992,2]
[348513313,1736597457142,-500.0,0.00010992,2]
[348513314,1736597457151,-916.36,0.00010992,2]
[348513315,1736597457160,-500.0,0.00010992,2]
[348513316,1736597457170,-500.0,0.00010992,2]
[348513317,1736597457179,-557.78,0.00010992,2]
[348513318,1736597457188,-578.34,0.00010992,2]
[348513319,1736597457198,-955.55,0.00010992,2]
[348513320,1736597457207,-500.0,0.00010992,2]
[348513321,1736597457216,-2737.36,0.00010992,2]
[348513322,1736597457226,-543.37,0.00010992,2]
[348513323,1736597457235,-500.0,0.00010992,2]
[348513324,1736597457244,-1169.62,0.00010992,2]
[348513325,1736597457253,-1072.01,0.00010992,2]
[348513326,1736597457262,-500.0,0.00010992,2]
[348513327,1736597457273,-1644.64,0.00010992,2]
[348513328,1736597457282,-865.21,0.00010992,2]
[348513329,1736597457291,-1683.29,0.00010992,2]
[348513330,1736597457300,-1378.72,0.00010992,2]
[348513331,1736597457309,-2661.33,0.00010992,2]
[348513332,1736597457319,-500.0,0.00010992,2]
[348513333,1736597457327,-1005.4,0.00010992,2]
[348513334,1736597457336,-3163.08,0.00010992,2]
[348513335,1736597457345,-716.64,0.00010992,2]
[348513336,1736597457354,-3026.43,0.00010992,2]
[348513337,1736597457363,-927.48,0.00010992,2]
[348513338,1736597457372,-1692.93,0.00010992,2]
[348513339,1736597457381,-1249.42,0.00010992,2]
[348513340,1736597457389,-500.0,0.00010992,2]
[348513341,1736597457398,-1182.11,0.00010992,2]
[348513342,1736597457407,-1080.18,0.00010992,2]
[348513343,1736597457417,-1426.27,0.00010992,2]
[348513344,1736597457427,-1995.2,0.00010992,2]
[348513345,1736597457436,-765.62,0.00010992,2]
[348513346,1736597457445,-562.36,0.00010992,2]
[348513347,1736597457454,-538.93,0.00010992,2]
[348513348,1736597457463,-1456.54,0.00010992,2]
[348513349,1736597457473,-1159.75,0.00010992,2]
[348513350,1736597457482,-500.0,0.00010992,2]
[348513351,1736597457491,-1113.67,0.00010992,2]
[348513352,1736597457500,-500.0,0.00010992,2]
[348513353,1736597457509,-1067.27,0.00010992,2]
[348513354,1736597457519,-1081.51,0.00010992,2]
[348513355,1736597457528,-3472.83,0.00010992,2]
[348513356,1736597457537,-847.86,0.00010992,2]
[348513357,1736597457547,-500.0,0.00010992,2]
[348513358,1736597457556,-856.18,0.00010992,2]
[348513359,1736597457565,-500.0,0.00010992,2]
[348513360,1736597457575,-500.0,0.00010992,2]
[348513361,1736597457584,-1358.71,0.00010992,2]
[348513362,1736597457593,-892.0,0.00010993,2]
[348513363,1736597457602,-338.37830854,0.00010993,2]
[348513364,1736597457611,-500.0,0.00010993,2]
[348513365,1736597457619,-500.0,0.00010993,2]
[348513366,1736597457628,-500.0,0.00010993,2]
[348513367,1736597457638,-500.0,0.00010993,2]
[348513368,1736597457647,-502.56207721,0.00010993,2]
[348513369,1736597457656,-833.11,0.00010993,2]
[348513370,1736597457665,-342.70547217,0.00010993,2]
[348513371,1736597457674,-500.0,0.00010993,2]
[348513372,1736597457683,-500.0,0.00010993,2]
[348513373,1736597457692,-500.0,0.00010993,2]
[348513374,1736597457702,-557.16,0.00010993,2]
[348513375,1736597457711,-500.0,0.00010993,2]
[348513376,1736597457721,-500.0,0.00010993,2]
[348513377,1736597457730,-500.0,0.00010993,2]
[348513378,1736597457739,-655.39,0.00010993,2]
[348513379,1736597457749,-500.0,0.00010993,2]
[348513380,1736597457758,-542.37,0.00010993,2]
[348513381,1736597457767,-500.0,0.00010993,2]
[348513382,1736597457777,-500.0,0.00010993,2]
[348513383,1736597457786,-681.11,0.00010993,2]
[348513384,1736597457795,-500.0,0.00010993,2]
[348513385,1736597457805,-500.0,0.00010993,2]
[348513386,1736597457814,-500.0,0.00010993,2]
[348513387,1736597457824,-691.08,0.00010993,2]
[348513388,1736597457833,-500.0,0.00010993,2]
[348513389,1736597457842,-765.4,0.00010993,2]
[348513390,1736597457852,-500.0,0.00010993,2]
[348513391,1736597457861,-701.52,0.00010993,2]
[348513392,1736597457870,-500.0,0.00010993,2]
[348513393,1736597457879,-532.53,0.00010993,2]
[348513394,1736597457888,-293.36,0.00010993,2]
[348513395,1736597457897,-625.25,0.00010993,2]
[348513396,1736597457906,-598.82,0.00010993,2]
[348513397,1736597457915,-500.0,0.00010993,2]
[348513398,1736597457924,-500.0,0.00010993,2]
[348513399,1736597457933,-619.67,0.00010993,2]
[348513400,1736597457942,-500.0,0.00010993,2]
[348513401,1736597457953,-500.0,0.00010993,2]
[348513402,1736597457963,-616.87803899,0.00010993,2]
[348513403,1736597457972,-500.0,0.00010993,2]
[348513404,1736597457981,-500.0,0.00010993,2]
[348513405,1736597457990,-591.53,0.00010993,2]
[348513406,1736597457999,-709.37,0.00010993,2]
[348513407,1736597458009,-684.77,0.00010993,2]
[348513408,1736597458018,-500.0,0.00010993,2]
[348513409,1736597458029,-572.77,0.00010993,2]
[348513410,1736597458038,-500.0,0.00010993,2]
[348513411,1736597458047,-471.31617876,0.00010993,2]
[348513412,1736597458056,-500.0,0.00010993,2]
[348513413,1736597458065,-201.46012825,0.00010993,2]
[348513414,1736597458075,-521.87,0.00010993,2]
[348513415,1736597458084,-1019.91,0.00010993,2]
[348513416,1736597458093,-184.79931776,0.00010993,2]
[348513417,1736597458102,-500.0,0.00010993,2]
[348513418,1736597458111,-661.56,0.00010993,2]
[348513419,1736597458119,-1694.7,0.00010993,2]
[348513420,1736597458128,-239.87597474,0.00010993,2]
[348513421,1736597458137,-500.0,0.00010993,2]
[348513422,1736597458146,-500.0,0.00010993,2]
[348513423,1736597458156,-573.60246127,0.00010993,2]
[348513424,1736597458165,-566.34,0.00010993,2]
[348513425,1736597458174,-1112.5,0.00010993,2]
[348513426,1736597458183,-500.0,0.00010993,2]
[348513427,1736597458192,-585.14,0.00010993,2]
[348513428,1736597458201,-500.0,0.00010993,2]
[348513429,1736597458210,-500.0,0.00010993,2]
[348513430,1736597458219,-561.34,0.00010993,2]
[348513431,1736597458229,-500.0,0.00010993,2]
[348513432,1736597458238,-543.89,0.00010993,2]
[348513433,1736597458247,-525.77,0.00010993,2]
[348513434,1736597458257,-412.72,0.00010993,2]
[348513435,1736597458266,-223.49091925,0.00010993,2]
[348513436,1736597458275,-500.0,0.00010993,2]
[348513437,1736597458284,-500.0,0.00010993,2]
[348513438,1736597458293,-500.0,0.00010993,2]
[348513439,1736597458302,-500.0,0.00010993,2]
[348513440,1736597458311,-500.0,0.00010993,2]
[348513441,1736597458320,-458.51190113,0.00010993,2]
[348513442,1736597458330,-1978.95,0.00010993,2]
[348513443,1736597458339,-938.93,0.00010993,2]
[348513444,1736597458347,-220.75464208,0.00010993,2]
[348513445,1736597458356,-500.0,0.00010993,2]
[348513446,1736597458366,-1060.23,0.00010993,2]
[348513447,1736597458375,-1610.53,0.00010994,2]
[348513448,1736597458385,-630.45,0.00010995,2]
[348513449,1736597458394,-500.0,0.00010995,2]
[348513450,1736597458403,-659.46,0.00010995,2]
[348513451,1736597458412,-728.65,0.00010995,2]
[348513452,1736597458420,-698.29,0.00010995,2]
[348513453,1736597458429,-803.99,0.00010995,2]
[348513454,1736597458438,-924.6,0.00010995,2]
[348513455,1736597458447,-1742.05,0.00010995,2]
[348513456,1736597458456,-3784.66,0.00010995,2]
[348513457,1736597458465,-500.0,0.00010995,2]
[348513458,1736597458474,-500.0,0.00010995,2]
[348513459,1736597458483,-500.0,0.00010995,2]
[348513460,1736597458492,-1805.15,0.00010995,2]
[348513461,1736597458500,-500.0,0.00010995,2]
[348513462,1736597458510,-1444.75,0.00010995,2]
[348513463,1736597458519,-627.6,0.00010995,2]
[348513464,1736597458528,-713.42,0.00010995,2]
[348513465,1736597458537,-500.0,0.00010995,2]
[348513466,1736597458545,-600.0,0.00011034,2]
[348513467,1736597458554,-501.63531465,0.00011038,2]
[348513468,1736597458563,-500.0,0.00011061,2]
[348513469,1736597458572,-2000.0,0.00011061,2]
[348513470,1736597458581,-500.0,0.00011061,2]
[348513471,1736597458590,-200.0,0.00011061,2]
[348513472,1736597458600,-185.27786974,0.00011062,2]
[348513473,1736597458608,-938.4,0.00011094,2]
[348513474,1736597458617,-1026.97,0.00011094,2]
[348513475,1736597458626,-150.0,0.00011095,2]
[348513476,1736597458637,-1034.56,0.00011095,2]
[348513477,1736597458648,-1088.7,0.00011095,2]
[348513478,1736597458657,-842.03,0.00011095,2]
[348513479,1736597458667,-4233.0,0.00011115,2]
[348513480,1736597458676,-501.63531465,0.00011141,2]
[348513481,1736597458688,-185.27786974,0.00011188,2]
[348513482,1736597458699,-618.93,0.00011196,2]
[348513483,1736597458709,-200.0,0.000112,2]
[348513484,1736597458718,-365.0,0.000112,2]
[348513485,1736597458728,-152.0,0.00011223,6]
[348513486,1736597458737,-150.0,0.00011232,2]
[348513487,1736597458747,-501.63531465,0.00011245,2]
[348513488,1736597458756,-889.35,0.00011266,2]
[348513489,1736597458766,-756.17,0.00011266,2]
[348513490,1736597458776,-500.0,0.00011266,2]
[348513491,1736597458785,-500.0,0.00011266,2]
[348513492,1736597458794,-500.0,0.00011266,2]
[348513493,1736597458805,-864.479159,0.00011266,2]
[348513494,1736597458815,-628.28,0.00011266,2]
[348513495,1736597458826,-500.0,0.00011266,2]
[348513496,1736597458836,-845.669752,0.00011266,2]
[348513497,1736597458846,-500.0,0.00011266,2]
[348513498,1736597458857,-2203.32,0.00011266,2]
[348513499,1736597458866,-500.0,0.00011266,2]
[348513500,1736597458877,-500.0,0.00011266,2]
[348513501,1736597458887,-500.0,0.00011266,2]
[348513502,1736597458899,-555.27,0.00011266,2]
[348513503,1736597458909,-500.0,0.00011266,2]
[348513504,1736597458919,-500.0,0.00011266,2]
[348513505,1736597458928,-354.6457884,0.00011266,2]
[348513506,1736597458939,-500.0,0.00011266,2]
[348513507,1736597458950,-500.0,0.00011266,2]
[348513508,1736597458961,-500.0,0.00011266,2]
[348513509,1736597458971,-500.0,0.00011266,2]
[348513510,1736597458980,-500.0,0.00011266,2]
[348513511,1736597458989,-2440.07,0.00011266,2]
[348513512,1736597458998,-500.0,0.00011266,2]
[348513513,1736597459008,-500.0,0.00011266,2]
[348513514,1736597459017,-500.0,0.00011266,2]
[348513515,1736597459026,-500.0,0.00011266,2]
[348513516,1736597459036,-542.81,0.00011266,2]
[348513517,1736597459045,-2168.47,0.00011266,2]
[348513518,1736597459055,-500.0,0.00011266,2]
[348513519,1736597459064,-837.11,0.00011266,2]
[348513520,1736597459073,-500.0,0.00011266,2]
[348513521,1736597459082,-500.0,0.00011266,2]
[348513522,1736597459091,-1302.44,0.00011266,2]
[348513523,1736597459101,-952.74,0.00011266,2]
[348513524,1736597459110,-500.0,0.00011266,2]
[348513525,1736597459119,-716.39,0.00011266,2]
[348513526,1736597459128,-986.22,0.00011266,2]
[348513527,1736597459137,-643.61,0.00011266,2]
[348513528,1736597459146,-500.0,0.00011266,2]
[348513529,1736597459156,-2253.75,0.00011266,2]
[348513530,1736597459165,-500.0,0.00011266,2]
[348513531,1736597459174,-543.99,0.00011266,2]
[348513532,1736597459183,-500.0,0.00011266,2]
[348513533,1736597459192,-916.36,0.00011266,2]
[348513534,1736597459202,-500.0,0.00011266,2]
[348513535,1736597459211,-456.43,0.00011266,2]
[348513536,1736597459221,-557.78,0.00011266,2]
[348513537,1736597459230,-578.34,0.00011266,2]
[348513538,1736597459239,-955.55,0.00011266,2]
[348513539,1736597459248,-500.0,0.00011266,2]
[348513540,1736597459259,-2737.36,0.00011266,2]
[348513541,1736597459268,-543.37,0.00011266,2]
[348513542,1736597459278,-500.0,0.00011266,2]
[348513543,1736597459287,-1169.62,0.00011266,2]
[348513544,1736597459296,-1072.01,0.00011266,2]
[348513545,1736597459305,-1644.64,0.00011266,2]
[348513546,1736597459315,-500.0,0.00011266,2]
[348513547,1736597459324,-865.21,0.00011266,2]
[348513548,1736597459333,-1683.29,0.00011266,2]
[348513549,1736597459342,-1378.72,0.00011266,2]
[348513550,1736597459351,-2661.33,0.00011266,2]
[348513551,1736597459360,-500.0,0.00011266,2]
[348513552,1736597459369,-1005.4,0.00011266,2]
[348513553,1736597459378,-3163.08,0.00011266,2]
[348513554,1736597459387,-716.64,0.00011266,2]
[348513555,1736597459396,-3026.43,0.00011266,2]
[348513556,1736597459405,-927.48,0.00011266,2]
[348513557,1736597459414,-1692.93,0.00011266,2]
[348513558,1736597459575,-1249.42,0.00011266,2]
[348513559,1736597459584,-500.0,0.00011266,2]
[348513560,1736597459593,-1182.11,0.00011266,2]
[348513561,1736597459602,-1080.18,0.00011266,2]
[348513562,1736597459611,-1426.27,0.00011266,2]
[348513563,1736597459621,-1995.2,0.00011266,2]
[348513564,1736597459630,-765.62,0.00011266,2]
[348513565,1736597459639,-562.36,0.00011266,2]
[348513566,1736597459648,-538.93,0.00011266,2]
[348513567,1736597459657,-1456.54,0.00011266,2]
[348513568,1736597459666,-1159.75,0.00011266,2]
[348513569,1736597459677,-500.0,0.00011266,2]
[348513570,1736597459687,-1113.67,0.00011266,2]
[348513571,1736597459696,-500.0,0.00011266,2]
[348513572,1736597459707,-1067.27,0.00011266,2]
[348513573,1736597459716,-1081.51,0.00011266,2]
[348513574,1736597459725,-3472.83,0.00011266,2]
[348513575,1736597459734,-847.86,0.00011266,2]
[348513576,1736597459743,-500.0,0.00011266,2]
[348513577,1736597459752,-500.0,0.00011266,2]
[348513578,1736597459762,-856.18,0.00011266,2]
[348513579,1736597459771,-369.55,0.00011266,2]
[348513580,1736597459779,-1358.71,0.00011266,2]
[348513581,1736597459788,-549.13838431,0.00011267,2]
[348513582,1736597459798,-500.0,0.00011267,2]
[348513583,1736597459806,-500.0,0.00011267,2]
[348513584,1736597459815,-833.11,0.00011267,2]
[348513585,1736597459825,-500.0,0.00011267,2]
[348513586,1736597459834,-500.0,0.00011267,2]
[348513587,1736597459843,-500.0,0.00011267,2]
[348513588,1736597459852,-500.0,0.00011267,2]
[348513589,1736597459861,-500.0,0.00011267,2]
[348513590,1736597459870,-655.39,0.00011267,2]
[348513591,1736597459879,-500.0,0.00011267,2]
[348513592,1736597459888,-500.0,0.00011267,2]
[348513593,1736597459897,-681.11,0.00011267,2]
[348513594,1736597459907,-500.0,0.00011267,2]
[348513595,1736597459916,-425.4339191,0.00011267,2]
[348513596,1736597459926,-500.0,0.00011267,2]
[348513597,1736597459934,-691.08,0.00011267,2]
[348513598,1736597459943,-500.0,0.00011267,2]
[348513599,1736597459957,-765.4,0.00011267,2]
[348513600,1736597459966,-531.55,0.00011267,2]
[348513601,1736597459975,-701.52,0.00011267,2]
[348513602,1736597459990,-500.0,0.00011267,2]
[348513603,1736597460000,-532.53,0.00011267,2]
[348513604,1736597460010,-625.25,0.00011267,2]
[348513605,1736597460019,-598.82,0.00011267,2]
[348513606,1736597460031,-500.0,0.00011267,2]
[348513607,1736597460040,-500.0,0.00011267,2]
[348513608,1736597460051,-619.67,0.00011267,2]
[348513609,1736597460060,-500.0,0.00011267,2]
[348513610,1736597460070,-500.0,0.00011267,2]
[348513611,1736597460080,-500.0,0.00011267,2]
[348513612,1736597460090,-500.0,0.00011267,2]
[348513613,1736597460100,-591.53,0.00011267,2]
[348513614,1736597460109,-709.37,0.00011267,2]
[348513615,1736597460121,-684.77,0.00011267,2]
[348513616,1736597460130,-500.0,0.00011267,2]
[348513617,1736597460140,-572.77,0.00011267,2]
[348513618,1736597460150,-500.0,0.00011267,2]
[348513619,1736597460159,-500.0,0.00011267,2]
[348513620,1736597460169,-521.87,0.00011267,2]
[348513621,1736597460179,-1019.91,0.00011267,2]
[348513622,1736597460188,-491.96623775,0.00011267,2]
[348513623,1736597460199,-661.56,0.00011267,2]
[348513624,1736597460209,-1694.7,0.00011267,2]
[348513625,1736597460219,-500.0,0.00011267,2]
[348513626,1736597460228,-500.0,0.00011267,2]
[348513627,1736597460237,-566.34,0.00011267,2]
[348513628,1736597460247,-1112.5,0.00011267,2]
[348513629,1736597460256,-500.0,0.00011267,2]
[348513630,1736597460266,-500.0,0.00011267,2]
[348513631,1736597460275,-561.34,0.00011267,2]
[348513632,1736597460285,-500.0,0.00011267,2]
[348513633,1736597460295,-543.89,0.00011267,2]
[348513634,1736597460305,-525.77,0.00011267,2]
[348513635,1736597460314,-500.0,0.00011267,2]
[348513636,1736597460323,-500.0,0.00011267,2]
[348513637,1736597460333,-500.0,0.00011267,2]
[348513638,1736597460343,-500.0,0.00011267,2]
[348513639,1736597460353,-500.0,0.00011267,2]
[348513640,1736597460365,-1978.95,0.00011267,2]
[348513641,1736597460375,-938.93,0.00011267,2]
[348513642,1736597460384,-500.0,0.00011267,2]
[348513643,1736597460394,-1060.23,0.00011267,2]
[348513644,1736597460403,-1610.53,0.00011268,2]
[348513645,1736597460411,-630.45,0.00011269,2]
[348513646,1736597460421,-500.0,0.00011269,2]
[348513647,1736597460430,-659.46,0.00011269,2]
[348513648,1736597460439,-728.65,0.00011269,2]
[348513649,1736597460449,-698.29,0.00011269,2]
[348513650,1736597460460,-803.99,0.00011269,2]
[348513651,1736597460470,-924.6,0.00011269,2]
[348513652,1736597460480,-1742.05,0.00011269,2]
[348513653,1736597460490,-3784.66,0.00011269,2]
[348513654,1736597460499,-500.0,0.00011269,2]
[348513655,1736597460508,-500.0,0.00011269,2]
[348513656,1736597460517,-500.0,0.00011269,2]
[348513657,1736597460526,-1805.15,0.00011269,2]
[348513658,1736597460536,-500.0,0.00011269,2]
[348513659,1736597460545,-1444.75,0.00011269,2]
[348513660,1736597460554,-627.6,0.00011269,2]
[348513661,1736597460563,-713.42,0.00011269,2]
[348513662,1736597460573,-500.0,0.00011269,2]
[348513663,1736597460582,-185.27786974,0.00011315,2]
[348513664,1736597460591,-240.69,0.00011338,2]
[348513665,1736597460601,-336.39,0.00011342,2]
[348513666,1736597460610,-501.63531465,0.00011348,2]
[348513667,1736597460619,-1000.0,0.00011368,2]
[348513668,1736597460629,-938.4,0.00011368,2]
[348513669,1736597460639,-1026.97,0.00011368,2]
[348513670,1736597460648,-150.0,0.00011369,2]
[348513671,1736597460658,-1034.56,0.00011369,2]
[348513672,1736597460668,-1088.7,0.00011369,2]
[348513673,1736597460677,-842.03,0.00011369,2]
[348513674,1736597460686,-1500.72232871,0.00011422,2]
[348513675,1736597460695,-185.27786974,0.00011441,2]
[348513676,1736597460706,-501.63531465,0.00011452,2]
[348513677,1736597460715,-150.0,0.00011506,2]
[348513678,1736597460725,-2751.0,0.00011507,2]
[348513679,1736597460734,-889.35,0.0001154,2]
[348513680,1736597460744,-756.17,0.0001154,2]
[348513681,1736597460753,-500.0,0.0001154,2]
[348513682,1736597460764,-500.0,0.0001154,2]
[348513683,1736597460773,-500.0,0.0001154,2]
[348513684,1736597460782,-864.479159,0.0001154,2]
[348513685,1736597460792,-628.28,0.0001154,2]
[348513686,1736597460801,-597.35860609,0.0001154,2]
[348513687,1736597460811,-845.669752,0.0001154,2]
[348513688,1736597460821,-500.0,0.0001154,2]
[348513689,1736597460830,-2203.32,0.0001154,2]
[348513690,1736597460839,-500.0,0.0001154,2]
[348513691,1736597460849,-500.0,0.0001154,2]
[348513692,1736597460858,-500.0,0.0001154,2]
[348513693,1736597460867,-555.27,0.0001154,2]
[348513694,1736597460877,-500.0,0.0001154,2]
[348513695,1736597460886,-500.0,0.0001154,2]
[348513696,1736597460896,-500.0,0.0001154,2]
[348513697,1736597460906,-500.0,0.0001154,2]
[348513698,1736597460918,-500.0,0.0001154,2]
[348513699,1736597460927,-288.52,0.0001154,2]
[348513700,1736597460937,-500.0,0.0001154,2]
[348513701,1736597460946,-2440.07,0.0001154,2]
[348513702,1736597460960,-500.0,0.0001154,2]
[348513703,1736597460970,-500.0,0.0001154,2]
[348513704,1736597460980,-500.0,0.0001154,2]
[348513705,1736597460996,-500.0,0.0001154,2]
[348513706,1736597461005,-542.81,0.0001154,2]
[348513707,1736597461015,-2168.47,0.0001154,2]
[348513708,1736597461024,-500.0,0.0001154,2]
[348513709,1736597461034,-837.11,0.0001154,2]
[348513710,1736597461044,-500.0,0.0001154,2]
[348513711,1736597461053,-286.1132637,0.0001154,2]
[348513712,1736597461063,-1302.44,0.0001154,2]
[348513713,1736597461073,-952.74,0.0001154,2]
[348513714,1736597461082,-500.0,0.0001154,2]
[348513715,1736597461091,-716.39,0.0001154,2]
[348513716,1736597461101,-986.22,0.0001154,2]
[348513717,1736597461110,-643.61,0.0001154,2]
[348513718,1736597461120,-500.0,0.0001154,2]
[348513719,1736597461129,-2253.75,0.0001154,2]
[348513720,1736597461138,-500.0,0.0001154,2]
[348513721,1736597461148,-543.99,0.0001154,2]
[348513722,1736597461158,-500.0,0.0001154,2]
[348513723,1736597461167,-916.36,0.0001154,2]
[348513724,1736597461177,-500.0,0.0001154,2]
[348513725,1736597461187,-557.78,0.0001154,2]
[348513726,1736597461197,-578.34,0.0001154,2]
[348513727,1736597461208,-955.55,0.0001154,2]
[348513728,1736597461217,-500.0,0.0001154,2]
[348513729,1736597461227,-2737.36,0.0001154,2]
[348513730,1736597461237,-500.0,0.0001154,2]
[348513731,1736597461246,-543.37,0.0001154,2]
[348513732,1736597461256,-1169.62,0.0001154,2]
[348513733,1736597461265,-1072.01,0.0001154,2]
[348513734,1736597461275,-1644.64,0.0001154,2]
[348513735,1736597461285,-865.21,0.0001154,2]
[348513736,1736597461295,-500.0,0.0001154,2]
[348513737,1736597461305,-1683.29,0.0001154,2]
[348513738,1736597461315,-1378.72,0.0001154,2]
[348513739,1736597461324,-2661.33,0.0001154,2]
[348513740,1736597461334,-500.0,0.0001154,2]
[348513741,1736597461343,-1005.4,0.0001154,2]
[348513742,1736597461353,-3163.08,0.0001154,2]
[348513743,1736597461362,-716.64,0.0001154,2]
[348513744,1736597461372,-3026.43,0.0001154,2]
[348513745,1736597461381,-927.48,0.0001154,2]
[348513746,1736597461391,-1692.93,0.0001154,2]
[348513747,1736597461400,-1249.42,0.0001154,2]
[348513748,1736597461410,-500.0,0.0001154,2]
[348513749,1736597461420,-1182.11,0.0001154,2]
[348513750,1736597461429,-1080.18,0.0001154,2]
[348513751,1736597461439,-1426.27,0.0001154,2]
[348513752,1736597461450,-1995.2,0.0001154,2]
[348513753,1736597461461,-765.62,0.0001154,2]
[348513754,1736597461470,-538.93,0.0001154,2]
[348513755,1736597461480,-1456.54,0.0001154,2]
[348513756,1736597461490,-13.41464709,0.0001154,2]
[348513757,1736597461789,-1024.9677062,0.0001154,2]
[348513758,1736597461845,-121.36764671,0.0001154,2]
[348513759,1736597461855,-500.0,0.0001154,2]
[348513760,1736597461865,-601.79216829,0.0001154,2]
[348513761,1736597461878,-511.87783171,0.0001154,2]
[348513762,1736597461887,-500.0,0.0001154,2]
[348513763,1736597461896,-1081.51,0.0001154,2]
[348513764,1736597461905,-1067.27,0.0001154,2]
[348513765,1736597461915,-32.36987405,0.0001154,2]
[348513766,1736597461927,-333.08974364,0.0001154,2]
[348513767,1736597461937,-1429.7283,0.0001154,2]
[348513768,1736597461948,-1677.64208231,0.0001154,2]
[348513769,1736597461961,-847.86,0.0001154,2]
[348513770,1736597461970,-500.0,0.0001154,2]
[348513771,1736597461979,-856.18,0.0001154,2]
[348513772,1736597461988,-1358.71,0.0001154,2]
[348513773,1736597461998,-500.0,0.00011541,2]
[348513774,1736597462007,-500.0,0.00011541,2]
[348513775,1736597462016,-833.11,0.00011541,2]
[348513776,1736597462025,-500.0,0.00011541,2]
[348513777,1736597462035,-500.0,0.00011541,2]
[348513778,1736597462045,-500.0,0.00011541,2]
[348513779,1736597462053,-500.0,0.00011541,2]
[348513780,1736597462062,-500.0,0.00011541,2]
[348513781,1736597462071,-655.39,0.00011541,2]
[348513782,1736597462080,-500.0,0.00011541,2]
[348513783,1736597462089,-419.05755673,0.00011541,2]
[348513784,1736597462100,-80.94244327,0.00011541,2]
[348513785,1736597462108,-173.22121293,0.00011541,2]
[348513786,1736597462204,-1104.0,0.00010128,2]
[348513787,1736597462213,-507.88878707,0.00011541,2]
[348513788,1736597462223,-500.0,0.00011541,2]
[348513789,1736597462232,-500.0,0.00011541,2]
[348513790,1736597462241,-691.08,0.00011541,2]
[348513791,1736597462250,-500.0,0.00011541,2]